bitfinex/quotes_SOLUSD_20251130
["timestamp","ask_amount","ask_price","bid_price","bid_amount"]
[1764537476693,3.22,137.21,137.15,25.11880892]
[1764537477620,3.22,137.21,137.17,7.2902238]
[1764537477999,3.94,137.21,137.17,7.2902238]
[1764537480217,9.52994492,137.2,137.16,3.22]
[1764537480517,10.50859265,137.19,137.13,18.23081479]
[1764537480722,3.22,137.18,137.13,18.23081479]
[1764537480922,3.94,137.18,137.13,18.23081479]
[1764537481127,0.72,137.17,137.13,18.23081479]
[1764537481302,0.72,137.17,137.11,25.52694915]
[1764537482307,8.01024919,137.17,137.11,25.52694915]
[1764537483198,3.22,137.16,137.11,25.52694915]
[1764537484300,3.94,137.16,137.11,25.52694915]
[1764537488329,3.22,137.15,137.11,25.52694915]
[1764537490825,0.72,137.16,137.11,25.52694915]
[1764537491033,3.22,137.15,137.11,25.52694915]
[1764537491528,0.72,137.16,137.11,25.52694915]
[1764537491832,3.22,137.15,137.11,25.52694915]
[1764537492832,0.72,137.16,137.11,25.52694915]
[1764537493027,3.22,137.14,137.11,25.52694915]
[1764537499943,3.22,137.14,137.11,25.52694915]
[1764537505250,3.22,137.14,137.13,7.29235032]
[1764537506144,3.22,137.17,137.13,7.29235032]
[1764537506345,3.92,137.17,137.13,7.29235032]
[1764537506544,0.7,137.16,137.13,7.29235032]
[1764537507253,0.7,137.16,137.11,34.33689407]
[1764537507433,0.7,137.16,137.11,25.52694915]
[1764537510552,0.7,137.16,137.11,87.02694915]
[1764537515360,0.7,137.16,137.13,7.29235032]
[1764537517943,0.7,137.16,137.12,25.52408811]
[1764537529584,7.99085819,137.16,137.12,7.29288214]
[1764537529757,8.80994492,137.15,137.06,36.4797592]
[1764537529953,9.50994492,137.15,137.06,36.4797592]
[1764537530157,0.7,137.14,137.07,7.29554242]
[1764537531386,7.29235032,137.13,137.06,25.53588451]
[1764537531571,3.22,137.12,137.06,25.53588451]
[1764537531772,3.92,137.12,137.06,25.53588451]
[1764537531965,0.7,137.11,137.06,25.53588451]
[1764537533777,0.7,137.11,137.06,25.53588451]
[1764537537285,0.7,137.11,137.06,87.03588451]
[1764537545293,0.7,137.11,137.06,1e-08]
[1764537545294,7.99369096,137.11,137.06,1e-08]
[1764537545796,0.69,137.1,137.06,1e-08]
[1764537546587,7.29447808,137.09,137.06,1e-08]
[1764537547385,0.69,137.08,137.06,1e-08]
[1764537549699,3.22,137.07,137.06,1e-08]
[1764537550397,3.91,137.07,137.06,1e-08]
[1764537552905,11.20554242,137.07,137.06,1e-08]
[1764537557617,7.98554242,137.07,137.06,1e-08]
[1764537557912,11.20554242,137.07,137.06,1e-08]
[1764537568428,14.12834392,137.07,137.06,1e-08]
[1764537568720,10.90834392,137.07,137.06,1e-08]
[1764537569025,14.12834392,137.07,137.06,1e-08]
[1764537570320,10.90834392,137.07,137.06,1e-08]
[1764537570511,11.20554242,137.07,137.06,1e-08]
[1764537571433,14.12813037,137.07,137.06,1e-08]
[1764537574532,11.20554242,137.07,137.06,1e-08]
[1764537576206,14.12834392,137.07,137.06,1e-08]
[1764537580238,14.12834392,137.07,137.03,0.09000001]
[1764537580540,0.66,137.06,137.03,0.09000001]
[1764537581236,10.21834392,137.07,137.03,0.09000001]
[1764537581409,3.88,137.06,137.03,0.09000001]
[1764537581811,6.11491016,137.06,137.03,0.09000001]
[1764537582308,12.75099404,137.06,137.03,0.09000001]
[1764537582503,2.9228015,137.07,137.03,0.09000001]
[1764537582504,10.21846426,137.07,137.03,0.09000001]
[1764537582732,3.22,137.06,137.03,0.09000001]
[1764537583932,3.22,137.05,137.03,0.09000001]
[1764537585428,3.22,137.04,137.03,0.09000001]
[1764537587510,3.88,137.04,137.03,0.09000001]
[1764537588026,6.11491016,137.04,137.03,0.09000001]
[1764537588424,7.37297182,137.04,137.03,0.09000001]
[1764537588735,14.67011134,137.04,137.03,0.09000001]
[1764537592235,32.91155929,137.04,137.03,0.09000001]
[1764537594756,41.72150421,137.04,137.03,0.09000001]
[1764537595040,41.72150421,137.04,136.98,0.1]
[1764537595041,16.308864,137.01,136.98,0.1]
[1764537595351,3.49297182,136.99,136.98,0.1]
[1764537595726,4.20297182,136.99,136.98,0.1]
[1764537596944,11.50277472,136.99,136.98,0.1]
[1764537597447,23.80569146,136.99,136.98,0.1]
[1764537598950,26.73041635,136.99,136.98,0.1]
[1764537599246,14.42749961,136.99,136.98,0.1]
[1764537599434,17.64749961,136.99,136.98,0.1]
[1764537601251,26.45744453,136.99,136.98,0.1]
[1764537605450,14.15452779,136.99,136.98,0.1]
[1764537605759,17.64749961,136.99,136.98,0.1]
[1764537608354,14.72277472,136.99,136.98,0.1]
[1764537616945,17.64728577,136.99,136.98,0.1]
[1764537617264,14.72277472,136.99,136.98,0.1]
[1764537619466,17.64728577,136.99,136.98,0.1]
[1764537619963,14.42728577,136.99,136.98,0.1]
[1764537620169,14.72277472,136.99,136.98,0.1]
[1764537630493,17.64728577,136.99,136.98,0.1]
[1764537630684,14.72277472,136.99,136.98,0.1]
[1764537639273,17.64728577,136.99,136.98,0.1]
[1764537640490,26.45723069,136.99,136.98,0.1]
[1764537640700,29.95020251,136.99,136.98,0.1]
[1764537641196,46.25906651,136.99,136.98,0.1]
[1764537642187,26.73020251,136.99,136.98,1e-08]
[1764537642398,29.95020251,136.99,136.98,1e-08]
[1764537644192,29.95020251,136.99,136.97,0.1]
[1764537644393,0.69,136.98,136.97,0.1]
[1764537644686,4.18297182,136.98,136.97,0.1]
[1764537644892,7.1083384,136.98,136.97,0.1]
[1764537646789,14.40867421,136.98,136.97,1e-08]
[1764537646975,23.21861913,136.98,136.97,1e-08]
[1764537647293,8.80994492,136.95,136.93,0.1]
[1764537647500,31.83178074,136.94,136.93,0.1]
[1764537647871,35.44778929,136.94,136.93,0.1]
[1764537648303,42.75025752,136.94,136.93,0.1]
[1764537648505,42.75025752,136.94,136.93,1e-08]
[1764537649580,46.24322934,136.94,136.93,1e-08]
[1764537649799,29.93436534,136.94,136.92,0.1]
[1764537649979,29.93436534,136.94,136.92,1e-08]
[1764537649980,16.48588856,136.93,136.92,1e-08]
[1764537650300,16.308864,136.9,136.86,0.1]
[1764537650504,2.24120131,136.87,136.84,0.1]
[1764537650805,2.24120131,136.85,136.84,0.1]
[1764537650976,5.46120131,136.85,136.84,0.1]
[1764537651174,14.96114623,136.85,136.84,0.1]
[1764537651370,33.23928578,136.85,136.84,0.1]
[1764537651701,40.54655651,136.85,136.84,0.1]
[1764537652281,37.32655651,136.85,136.84,0.1]
[1764537652596,3.22,136.85,136.84,0.2]
[1764537652777,18.26669693,136.87,136.84,0.2]
[1764537652778,9.54784596,136.87,136.84,0.2]
[1764537652978,3.22,136.85,136.84,0.2]
[1764537653304,5.46120131,136.85,136.84,0.1]
[1764537653510,0.69,136.91,136.84,0.2]
[1764537653806,2.24120131,136.88,136.85,0.1]
[1764537653984,3.22,136.87,136.85,0.1]
[1764537654680,16.308864,136.9,136.85,0.1]
[1764537654876,3.22,136.89,136.85,0.1]
[1764537655625,3.22,136.88,136.85,0.1]
[1764537655808,3.22,136.88,136.85,9.64847204]
[1764537656104,3.22,136.88,136.86,0.1]
[1764537657597,2.24120131,136.9,136.86,0.1]
[1764537657781,3.22,136.89,136.86,0.1]
[1764537657975,3.22,136.88,136.86,0.1]
[1764537659498,9.54562012,136.91,136.86,0.1]
[1764537659812,5.46120131,136.9,136.86,0.1]
[1764537660696,3.22,136.89,136.86,0.1]
[1764537661374,2.24120131,136.88,136.85,7.30727073]
[1764537661573,2.24120131,136.86,136.84,0.1]
[1764537661798,5.46120131,136.85,136.84,0.1]
[1764537662592,3.22,136.85,136.84,0.1]
[1764537668392,3.22,136.85,136.84,0.2]
[1764537671323,3.22,136.85,136.84,7.50778727]
[1764537671501,2.24120131,136.88,136.84,7.50778727]
[1764537671707,3.22,136.87,136.85,0.1]
[1764537672007,25.8553002,136.89,136.85,0.1]
[1764537672206,10.24589809,136.9,136.85,0.1]
[1764537672714,3.22,136.89,136.85,2.34120131]
[1764537672897,3.22,136.89,136.85,0.1]
[1764537673098,5.46120131,136.89,136.86,0.1]
[1764537673595,2.24120131,136.88,136.86,0.1]
[1764537674501,3.22,136.89,136.84,25.6772991]
[1764537674502,2.94120131,136.87,136.84,0.1]
[1764537674700,3.22,136.86,136.84,0.1]
[1764537675107,3.22,136.86,136.84,0.2]
[1764537675623,3.22,136.86,136.84,7.50754865]
[1764537679824,3.22,136.86,136.84,7.40754865]
[1764537680014,3.22,136.86,136.85,0.1]
[1764537680652,3.22,136.86,136.84,0.1]
[1764537680653,3.22,136.86,136.84,0.2]
[1764537680827,3.22,136.86,136.85,0.1]
[1764537681123,9.5458032,136.9,136.85,0.1]
[1764537681326,3.22,136.88,136.85,0.1]
[1764537681508,3.22,136.89,136.85,0.1]
[1764537682626,5.46120131,136.89,136.85,0.1]
[1764537683735,6.18120131,136.89,136.85,0.1]
[1764537685801,2.96120131,136.89,136.85,7.40727073]
[1764537686020,5.46120131,136.89,136.86,0.1]
[1764537686226,6.13120131,136.89,136.86,0.1]
[1764537687027,2.24120131,136.88,136.85,7.30727073]
[1764537687422,5.46120131,136.89,136.86,0.1]
[1764537687825,6.13120131,136.89,136.86,0.1]
[1764537688223,2.91120131,136.89,136.86,0.1]
[1764537688524,6.13120131,136.89,136.86,0.1]
[1764537688731,3.89,136.89,136.86,0.1]
[1764537689234,3.89,136.89,136.85,7.40727073]
[1764537691808,3.89,136.89,136.86,0.1]
[1764537692008,3.89,136.89,136.85,7.30727073]
[1764537692233,3.89,136.89,136.85,7.40727073]
[1764537692434,3.89,136.89,136.85,25.67544756]
[1764537692924,3.89,136.89,136.85,25.57544756]
[1764537693128,3.89,136.89,136.85,25.67544756]
[1764537693529,3.22,136.89,136.85,25.57544756]
[1764537693829,2.24120131,136.89,136.86,0.1]
[1764537694029,5.46120131,136.89,136.86,0.1]
[1764537694533,2.24120131,136.9,136.86,61.6]
[1764537694711,0.67,136.9,136.86,61.6]
[1764537694910,0.67,136.9,136.87,0.1]
[1764537696634,0.67,136.9,136.87,7.40620296]
[1764537699648,5.46120131,136.91,136.87,7.40620296]
[1764537699827,5.46120131,136.91,136.88,0.1]
[1764537700023,3.22,136.91,136.88,0.1]
[1764537700532,6.13120131,136.91,136.88,0.1]
[1764537700739,6.13120131,136.91,136.87,25.67171037]
[1764537700942,6.13120131,136.91,136.88,0.1]
[1764537703436,3.22,136.91,136.88,0.1]
[1764537703942,3.89,136.91,136.88,0.1]
[1764537705224,3.89,136.91,136.87,25.57171037]
[1764537705225,6.13120131,136.91,136.87,25.57171037]
[1764537705539,6.13120131,136.91,136.87,25.67171037]
[1764537706541,5.46120131,136.91,136.87,87.07171037]
[1764537706838,0.67,136.9,136.87,87.07171037]
[1764537707045,0.67,136.9,136.87,87.17171037]
[1764537708038,5.46120131,136.91,136.87,87.17171037]
[1764537708247,6.13120131,136.91,136.87,87.17171037]
[1764537709438,5.46120131,136.91,136.87,87.17171037]
[1764537709644,0.67,136.9,136.87,87.17171037]
[1764537710053,5.46120131,136.91,136.87,87.17171037]
[1764537710236,6.13120131,136.91,136.87,87.17171037]
[1764537712346,7.38949785,136.91,136.87,87.17171037]
[1764537712546,7.38949785,136.91,136.87,25.67171037]
[1764537713041,7.38949785,136.91,136.87,18.36550741]
[1764537713632,6.71949785,136.91,136.87,18.36550741]
[1764537713834,0.67,136.9,136.87,18.36550741]
[1764537714522,0.67,136.9,136.87,25.67171037]
[1764537716445,0.67,136.9,136.87,18.36550741]
[1764537716839,3.9,136.91,136.87,15.86550741]
[1764537717045,3.22,136.91,136.88,0.1]
[1764537718243,11.48269797,136.93,136.88,0.1]
[1764537718449,0.68,136.92,136.88,61.6]
[1764537718652,0.68,136.92,136.89,7.30513551]
[1764537720250,4.17949785,136.92,136.89,7.30513551]
[1764537722354,11.20311876,136.93,136.89,7.40513551]
[1764537722541,0.68,136.92,136.89,7.40513551]
[1764537725138,0.68,136.92,136.89,7.30513551]
[1764537727355,11.48305171,136.92,136.88,68.80555246]
[1764537727562,3.49949785,136.9,136.88,7.30555246]
[1764537728053,0.68,136.92,136.88,7.40555246]
[1764537728253,3.22,136.91,136.88,7.40555246]
[1764537728951,3.22,136.91,136.88,7.30555246]
[1764537729151,3.22,136.92,136.89,0.1]
[1764537729461,3.9,136.92,136.89,0.1]
[1764537729660,3.9,136.92,136.88,29.1692233]
[1764537730758,3.9,136.92,136.89,0.1]
[1764537730958,0.68,136.94,136.89,3.59949785]
[1764537731157,3.22,136.94,136.89,3.59949785]
[1764537731460,0.68,136.93,136.9,0.1]
[1764537731834,0.68,136.93,136.89,3.59949785]
[1764537732437,3.22,136.94,136.9,7.40460189]
[1764537732650,3.9,136.94,136.9,7.40460189]
[1764537732857,0.68,136.96,136.91,3.59949785]
[1764537733054,3.9,136.95,136.91,3.59949785]
[1764537733455,3.22,136.95,136.92,0.1]
[1764537734365,3.22,136.95,136.92,7.40353491]
[1764537734564,3.9,136.95,136.92,7.30353491]
[1764537735358,3.9,136.95,136.92,7.40353491]
[1764537735660,0.68,136.96,136.92,90.56187003]
[1764537735833,0.68,136.96,136.92,90.66187003]
[1764537736234,6.71949785,136.98,136.92,90.66187003]
[1764537736235,0.68,136.98,136.94,3.49949785]
[1764537736449,0.68,136.97,136.93,12.40944277]
[1764537736654,0.68,136.97,136.93,8.90994492]
[1764537737360,0.68,136.97,136.94,7.30246823]
[1764537737747,0.68,136.97,136.94,25.55863881]
[1764537738566,3.49949785,136.95,136.93,7.3029749]
[1764537738738,3.49949785,136.96,136.93,7.3029749]
[1764537738943,4.17949785,136.96,136.93,7.3029749]
[1764537739152,0.68,136.95,136.93,7.3029749]
[1764537739542,0.68,136.95,136.92,18.25845204]
[1764537743973,4.17949785,136.95,136.92,18.25845204]
[1764537744175,0.68,136.95,136.92,18.25845204]
[1764537744358,0.66,136.94,136.92,18.25845204]
[1764537745776,0.66,136.94,136.92,25.56198695]
[1764537747770,0.66,136.94,136.92,18.25845204]
[1764537748567,0.67,136.95,136.92,18.25845204]
[1764537749873,0.67,136.95,136.92,25.56198695]
[1764537752168,0.67,136.95,136.92,25.66198695]
[1764537753580,3.89,136.96,136.92,25.66198695]
[1764537754278,0.67,136.95,136.92,90.6614848]
[1764537754579,7.38949785,136.98,136.92,90.6614848]
[1764537754779,0.67,136.97,136.92,90.6614848]
[1764537755166,0.67,136.97,136.92,29.1614848]
[1764537757177,4.16949785,136.97,136.92,25.66198695]
[1764537757577,0.67,136.96,136.92,25.66198695]
[1764537758380,3.49949785,136.93,136.9,3.49949785]
[1764537758675,3.49949785,136.93,136.86,25.67288862]
[1764537758676,3.49949785,136.91,136.86,25.67288862]
[1764537758875,3.49949785,136.88,136.86,7.30673681]
[1764537759270,4.16949785,136.88,136.86,7.30673681]
[1764537759883,0.67,136.88,136.86,7.30673681]
[1764537760590,0.67,136.88,136.85,25.57544756]
[1764537768889,0.67,136.88,136.85,87.07544756]
[1764537771293,0.67,136.91,136.86,15.62944277]
[1764537771595,0.67,136.9,136.86,8.80994492]
[1764537771767,0.67,136.9,136.84,0.1]
[1764537771768,3.49949785,136.87,136.84,0.1]
[1764537771967,3.49949785,136.85,136.84,0.1]
[1764537772590,4.16949785,136.85,136.84,0.1]
[1764537772885,0.67,136.85,136.84,0.1]
[1764537773089,4.16949785,136.85,136.84,0.1]
[1764537773665,14.97626643,136.85,136.77,40.22986181]
[1764537773866,3.49949785,136.81,136.76,3.57097675]
[1764537774066,3.49949785,136.79,136.76,10.78289568]
[1764537774467,0.67,136.78,136.76,10.78289568]
[1764537775280,0.67,136.78,136.76,3.47097675]
[1764537775484,2.24341247,136.77,136.76,3.47097675]
[1764537775788,2.46341247,136.77,136.76,3.47097675]
[1764537775990,2.46341247,136.77,136.76,2.75097675]
[1764537776379,0.72,136.77,136.76,2.75097675]
[1764537776573,2.96341247,136.77,136.76,2.75097675]
[1764537778216,0.72,136.77,136.76,2.75097675]
[1764537778420,2.96341247,136.77,136.76,2.75097675]
[1764537779190,2.24341247,136.78,136.76,2.75097675]
[1764537779397,0.72,136.79,136.76,10.06294006]
[1764537779604,2.96341247,136.79,136.76,10.06294006]
[1764537779975,0.72,136.78,136.76,10.06294006]
[1764537780396,2.96341247,136.79,136.76,10.06294006]
[1764537781275,0.72,136.78,136.76,10.06294006]
[1764537782189,2.24341247,136.79,136.76,10.06294006]
[1764537782190,2.96341247,136.79,136.76,10.06294006]
[1764537782380,0.72,136.79,136.76,10.06294006]
[1764537782582,0.72,136.79,136.76,10.76294006]
[1764537782796,6.20341247,136.8,136.76,10.76294006]
[1764537783184,2.96341247,136.8,136.76,10.76294006]
[1764537783907,0.72,136.8,136.77,0.7]
[1764537784072,6.20341247,136.82,136.77,0.7]
[1764537784276,0.72,136.82,136.77,2.94341247]
[1764537784477,2.96341247,136.82,136.77,2.94341247]
[1764537784681,2.96341247,136.82,136.78,0.7]
[1764537785087,0.72,136.82,136.78,2.94341247]
[1764537785578,0.72,136.82,136.79,7.31047591]
[1764537786093,0.72,136.82,136.79,8.01047591]
[1764537787801,3.96,136.84,136.8,0.7]
[1764537788002,0.72,136.83,136.79,71.75388838]
[1764537788197,0.72,136.83,136.8,2.24341247]
[1764537788502,0.72,136.83,136.8,2.94341247]
[1764537788801,0.72,136.83,136.79,71.05388838]
[1764537789003,0.72,136.83,136.79,71.75388838]
[1764537789390,0.72,136.83,136.79,69.51047591]
[1764537789594,0.72,136.83,136.79,71.75388838]
[1764537789797,0.72,136.83,136.79,71.05388838]
[1764537789992,0.72,136.83,136.81,7.3094072]
[1764537791707,5.48341247,136.85,136.81,7.3094072]
[1764537791888,0.72,136.84,136.81,7.3094072]
[1764537792202,5.48341247,136.85,136.81,7.3094072]
[1764537792402,0.72,136.84,136.81,8.0094072]
[1764537793607,2.96341247,136.85,136.81,26.28292521]
[1764537794003,0.72,136.85,136.82,0.7]
[1764537795609,0.72,136.85,136.81,28.52633768]
[1764537795796,2.96341247,136.85,136.81,28.52633768]
[1764537795992,2.96341247,136.85,136.81,7.3094072]
[1764537795993,2.24341247,136.84,136.81,7.3094072]
[1764537796303,2.96341247,136.84,136.81,7.3094072]
[1764537796507,0.72,136.83,136.81,7.3094072]
[1764537800765,0.72,136.84,136.81,10.25281967]
[1764537801007,0.72,136.84,136.81,8.0094072]
[1764537801207,0.72,136.84,136.81,7.3094072]
[1764537801412,2.96341247,136.86,136.82,0.7]
[1764537801587,0.72,136.85,136.82,0.7]
[1764537801789,0.72,136.85,136.82,7.30837543]
[1764537801996,0.22,136.85,136.82,7.30837543]
[1764537802219,5.48341247,136.86,136.82,7.30837543]
[1764537803505,2.24341247,136.86,136.82,7.30837543]
[1764537803697,5.48341247,136.86,136.82,7.30837543]
[1764537804008,0.71,136.85,136.82,7.30837543]
[1764537804916,0.71,136.85,136.82,9.5517879]
[1764537805434,3.24,136.86,136.83,0.65]
[1764537805616,0.71,136.87,136.84,7.30780473]
[1764537805939,0.69,136.87,136.84,7.30780473]
[1764537809137,3.93,136.88,136.85,0.71]
[1764537809431,0.69,136.87,136.85,0.71]
[1764537812635,0.69,136.88,136.85,7.30674515]
[1764537812833,0.69,136.88,136.85,8.01674515]
[1764537813331,5.48341247,136.89,136.86,8.01645397]
[1764537813627,6.17341247,136.89,136.86,8.01645397]
[1764537813828,3.24,136.89,136.87,0.71]
[1764537814141,9.49994492,136.93,136.88,18.55227647]
[1764537814142,0.69,136.93,136.88,18.55227647]
[1764537814346,0.69,136.92,136.89,0.71]
[1764537814637,0.69,136.92,136.86,41.88215999]
[1764537814638,2.24341247,136.91,136.86,41.88215999]
[1764537814934,2.93341247,136.92,136.87,2.95341247]
[1764537815326,2.93341247,136.92,136.88,0.71]
[1764537815622,0.69,136.91,136.88,8.01514577]
[1764537816339,0.69,136.92,136.88,8.01514577]
[1764537816545,0.69,136.92,136.89,0.71]
[1764537817734,0.69,136.92,136.9,7.30460189]
[1764537817940,2.93341247,136.95,136.9,7.30460189]
[1764537818108,0.69,136.94,136.91,0.71]
[1764537818640,2.24341247,136.95,136.91,0.71]
[1764537818933,2.93341247,136.95,136.91,0.71]
[1764537819127,2.24341247,136.95,136.91,8.01395523]
[1764537819327,2.93341247,136.94,136.91,8.01395523]
[1764537823445,2.86990932,136.94,136.91,8.01395523]
[1764537823839,2.86990932,136.94,136.91,7.30395523]
[1764537823840,2.24341247,136.94,136.91,7.30395523]
[1764537824015,2.24341247,136.94,136.92,0.71]
[1764537824218,2.24341247,136.95,136.92,0.71]
[1764537824516,2.24341247,136.95,136.91,8.01395523]
[1764537825450,2.93341247,136.95,136.91,8.01395523]
[1764537825947,2.93341247,136.95,136.92,0.71]
[1764537826343,2.24341247,136.93,136.89,7.30487449]
[1764537826549,7.99246823,136.94,136.89,8.01487449]
[1764537826730,0.69,136.93,136.9,0.71]
[1764537826936,2.93341247,136.93,136.9,0.71]
[1764537827137,0.69,136.93,136.9,0.71]
[1764537827733,7.99246823,136.94,136.9,10.25758475]
[1764537827934,10.2358807,136.94,136.9,10.25758475]
[1764537828137,10.2358807,136.94,136.91,0.71]
[1764537830363,2.93341247,136.94,136.91,8.01396218]
[1764537830732,2.24341247,136.92,136.88,91.79367645]
[1764537830934,2.24341247,136.89,136.85,0.71]
[1764537831149,2.24341247,136.88,136.85,0.71]
[1764537831628,2.93341247,136.88,136.85,0.71]
[1764537832046,2.93341247,136.88,136.85,8.01717531]
[1764537832249,2.24341247,136.89,136.85,8.01717531]
[1764537832445,2.93341247,136.89,136.86,0.71]
[1764537833469,2.93341247,136.89,136.86,8.0164202]
[1764537836371,4.19034704,136.89,136.86,8.0164202]
[1764537838055,10.8055546,136.89,136.85,7.30727073]
[1764537838276,4.16034704,136.88,136.85,7.30727073]
[1764537838966,4.16034704,136.88,136.85,7.96727073]
[1764537840279,4.16034704,136.88,136.85,7.30727073]
[1764537840280,3.50034704,136.86,136.85,7.30727073]
[1764537840440,3.50034704,136.86,136.83,79.77027049]
[1764537840441,3.50034704,136.86,136.84,7.30761049]
[1764537840643,0.66,136.85,136.84,7.30761049]
[1764537841045,0.66,136.85,136.82,70.96994492]
[1764537841046,4.16034704,136.85,136.78,36.55452116]
[1764537841249,3.50034704,136.8,136.77,7.31154492]
[1764537841463,3.88,136.84,136.77,26.25040724]
[1764537841669,3.50034704,136.81,136.77,26.25040724]
[1764537841851,3.50034704,136.81,136.78,0.66]
[1764537842051,4.16034704,136.81,136.78,0.66]
[1764537842259,4.16034704,136.81,136.79,7.31047591]
[1764537843167,0.66,136.81,136.79,7.31047591]
[1764537843977,11.46797966,136.85,136.8,4.16034704]
[1764537844140,7.96763262,136.85,136.8,0.66]
[1764537844461,0.66,136.84,136.81,4.16034704]
[1764537844757,3.22,136.86,136.82,3.50034704]
[1764537844963,0.66,136.86,136.83,3.50034704]
[1764537845266,0.66,136.86,136.83,4.16034704]
[1764537845478,11.18567729,136.88,136.84,4.16034704]
[1764537845977,11.18567729,136.88,136.85,3.50034704]
[1764537845978,3.88,136.88,136.85,3.50034704]
[1764537846150,3.22,136.88,136.86,3.50034704]
[1764537846462,25.56556552,136.91,136.87,3.50034704]
[1764537846648,0.66,136.9,136.87,3.50034704]
[1764537846854,0.66,136.9,136.87,4.16034704]
[1764537847575,0.66,136.9,136.86,3.50034704]
[1764537847870,0.66,136.9,136.86,4.16034704]
[1764537848045,0.66,136.9,136.87,7.30620296]
[1764537851952,0.66,136.9,136.87,7.96620296]
[1764537852688,3.22,136.91,136.88,0.66]
[1764537852982,3.22,136.91,136.88,4.16034704]
[1764537853152,3.88,136.91,136.88,4.16034704]
[1764537853465,3.22,136.91,136.89,3.50034704]
[1764537853672,3.22,136.91,136.89,4.16034704]
[1764537854344,3.22,136.91,136.89,3.50034704]
[1764537854548,3.88,136.91,136.88,4.16034704]
[1764537854776,3.88,136.91,136.88,11.46598375]
[1764537855070,3.88,136.91,136.88,4.16034704]
[1764537855584,3.88,136.91,136.88,11.46596064]
[1764537855955,3.88,136.91,136.86,61.5]
[1764537855956,4.16034704,136.9,136.86,61.5]
[1764537856153,4.16034704,136.9,136.86,68.80655964]
[1764537856154,0.66,136.9,136.86,68.80655964]
[1764537856354,0.66,136.89,136.86,61.5]
[1764537857052,0.66,136.89,136.86,68.8065908]
[1764537859773,10.80506464,136.9,136.86,68.8065908]
[1764537859979,0.66,136.9,136.87,0.66]
[1764537860281,0.66,136.9,136.87,4.16034704]
[1764537861957,10.52416965,136.91,136.88,0.66]
[1764537862158,11.18416965,136.91,136.87,10.8062261]
[1764537862358,0.66,136.9,136.87,11.4662261]
[1764537864481,7.97340428,136.93,136.88,0.65]
[1764537864682,34.56417068,136.95,136.91,3.50034704]
[1764537864683,11.19233945,136.95,136.91,3.50034704]
[1764537864861,11.19233945,136.95,136.91,4.15034704]
[1764537864862,0.67,136.94,136.91,4.15034704]
[1764537865063,0.67,136.94,136.91,0.65]
[1764537865487,0.65,136.94,136.91,0.65]
[1764537865789,0.65,136.94,136.91,11.45418844]
[1764537867173,3.22,136.95,136.92,8.01334003]
[1764537867475,3.22,136.95,136.92,10.80368707]
[1764537867680,3.22,136.95,136.93,0.71]
[1764537870066,0.2,136.97,136.94,3.50034704]
[1764537870267,0.85,136.97,136.94,3.50034704]
[1764537870584,0.2,136.97,136.95,4.21034704]
[1764537870890,0.2,136.97,136.96,3.50034704]
[1764537871066,0.2,136.97,136.96,4.21034704]
[1764537871980,0.2,136.97,136.96,11.5117489]
[1764537872389,16.308864,136.94,136.86,0.71]
[1764537872579,6.72034704,136.93,136.87,8.01604232]
[1764537872777,3.87,136.93,136.88,3.50034704]
[1764537872961,3.87,136.93,136.88,4.21034704]
[1764537873171,3.87,136.93,136.89,0.71]
[1764537873678,3.87,136.93,136.89,8.01493865]
[1764537874876,3.22,136.93,136.9,0.71]
[1764537875575,3.87,136.93,136.9,0.71]
[1764537875893,11.17300721,136.93,136.9,0.71]
[1764537879994,11.17300721,136.93,136.89,7.30493865]
[1764537880494,11.17300721,136.93,136.89,8.01493865]
[1764537880803,0.65,136.92,136.89,8.01493865]
[1764537881492,0.65,136.92,136.88,61.5]